[Event "Titled Tuesday Blitz August 15 Early 2023"]
[White "Novikov, Evgenij"]
[Black "Williams, Simon K"]
[WhiteFideId "4125380"]
[BlackFideId "404454"]
[WhiteElo "2423"]
[BlackElo "2546"]
[Result "0-1"]
[Round "8"]
[TimeControl "180+1"]
[Date "2023.08.15"]
[WhiteClock "0:00:00"]
[BlackClock "0:01:14"]
[Board "99"]

1. d4 {[%clk 0:03:00]}  e6 {[%clk 0:02:59]} 2. Nc3 {[%clk 0:02:51]}  b6 {[%clk 0:02:58]} 3. e4 {[%clk 0:02:46]}  Bb7 {[%clk 0:02:57]} 4. Bd3 {[%clk 0:02:44]}  g6 {[%clk 0:02:55]} 5. Nge2 {[%clk 0:02:42]}  Bg7 {[%clk 0:02:55]} 6. O-O {[%clk 0:02:41]}  Ne7 {[%clk 0:02:55]} 7. Bg5 {[%clk 0:02:39]}  h6 {[%clk 0:02:55]} 8. Bf4 {[%clk 0:02:37]}  g5 {[%clk 0:02:53]} 9. Bg3 {[%clk 0:02:36]}  h5 {[%clk 0:02:53]} 10. f3 {[%clk 0:02:30]}  d6 {[%clk 0:02:51]} 11. Qd2 {[%clk 0:02:28]}  Ng6 {[%clk 0:02:39]} 12. Bf2 {[%clk 0:02:04]}  Nc6 {[%clk 0:02:34]} 13. Be3 {[%clk 0:01:55]}  g4 {[%clk 0:02:29]} 14. f4 {[%clk 0:01:52]}  Nge7 {[%clk 0:01:55]} 15. f5 {[%clk 0:01:39]}  exf5 {[%clk 0:01:51]} 16. exf5 {[%clk 0:01:38]}  Ng8 {[%clk 0:01:38]} 17. Bg5 {[%clk 0:01:21]}  Bf6 {[%clk 0:01:36]} 18. Bxf6 {[%clk 0:01:12]}  Nxf6 {[%clk 0:01:35]} 19. Rae1 {[%clk 0:01:01]}  Kf8 {[%clk 0:01:34]} 20. Nf4 {[%clk 0:00:53]}  Ne7 {[%clk 0:01:32]} 21. Ng6+ {[%clk 0:00:42]}  fxg6 {[%clk 0:01:28]} 22. fxg6 {[%clk 0:00:40]}  Ng8 {[%clk 0:01:27]} 23. g7+ {[%clk 0:00:35]}  Kxg7 {[%clk 0:01:25]} 24. Qg5+ {[%clk 0:00:35]}  Kf8 {[%clk 0:01:23]} 25. Re6 {[%clk 0:00:28]}  Rh6 {[%clk 0:01:21]} 26. Bg6 {[%clk 0:00:22]}  Kg7 {[%clk 0:01:14]} 27. Bxh5+ {[%clk 0:00:00]}  Kh8 {[%clk 0:01:14]} 0-1


[Site "https://www.chess.com"]

[Event "Titled Tuesday Blitz August 15 Early 2023"]
[White "Gontcharov, Vladislav"]
[Black "Avazkhonov, Alikhon"]
[WhiteFideId "4123492"]
[BlackFideId "14208504"]
[WhiteElo "2539"]
[BlackElo "2400"]
[Result "1-0"]
[Round "8"]
[TimeControl "180+1"]
[Date "2023.08.15"]
[WhiteClock "0:00:15"]
[BlackClock "0:00:00"]
[Board "101"]

1. d4 {[%clk 0:03:00]}  Nf6 {[%clk 0:02:56]} 2. c4 {[%clk 0:02:57]}  g6 {[%clk 0:02:56]} 3. Nc3 {[%clk 0:02:57]}  d5 {[%clk 0:02:57]} 4. cxd5 {[%clk 0:02:53]}  Nxd5 {[%clk 0:02:58]} 5. e4 {[%clk 0:02:53]}  Nxc3 {[%clk 0:02:58]} 6. bxc3 {[%clk 0:02:54]}  Bg7 {[%clk 0:02:59]} 7. Bb5+ {[%clk 0:02:47]}  Nd7 {[%clk 0:02:48]} 8. Ne2 {[%clk 0:02:45]}  O-O {[%clk 0:02:48]} 9. O-O {[%clk 0:02:45]}  c5 {[%clk 0:02:48]} 10. Be3 {[%clk 0:02:43]}  a6 {[%clk 0:02:47]} 11. Bd3 {[%clk 0:02:34]}  Qc7 {[%clk 0:02:47]} 12. Rc1 {[%clk 0:02:16]}  e5 {[%clk 0:02:46]} 13. f4 {[%clk 0:02:01]}  c4 {[%clk 0:02:17]} 14. Bb1 {[%clk 0:02:01]}  exd4 {[%clk 0:02:11]} 15. cxd4 {[%clk 0:01:52]}  b5 {[%clk 0:02:12]} 16. f5 {[%clk 0:01:42]}  Bb7 {[%clk 0:01:56]} 17. Qe1 {[%clk 0:01:40]}  Rfe8 {[%clk 0:01:54]} 18. fxg6 {[%clk 0:01:18]}  hxg6 {[%clk 0:01:50]} 19. Qh4 {[%clk 0:01:13]}  Qb6 {[%clk 0:01:20]} 20. Qf4 {[%clk 0:00:57]}  Nf6 {[%clk 0:00:54]} 21. e5 {[%clk 0:00:55]}  Qe6 {[%clk 0:00:31]} 22. Qh4 {[%clk 0:00:32]}  Nd5 {[%clk 0:00:28]} 23. Bg5 {[%clk 0:00:29]}  Qc6 {[%clk 0:00:12]} 24. Rf3 {[%clk 0:00:28]}  Ne7 {[%clk 0:00:09]} 25. Rcf1 {[%clk 0:00:27]}  Nf5 {[%clk 0:00:07]} 26. Bxf5 {[%clk 0:00:25]}  gxf5 {[%clk 0:00:07]} 27. Bf6 {[%clk 0:00:25]}  Bxf6 {[%clk 0:00:06]} 28. exf6 {[%clk 0:00:26]}  Qxf3 {[%clk 0:00:03]} 29. gxf3 {[%clk 0:00:24]}  Rxe2 {[%clk 0:00:02]} 30. Qg5+ {[%clk 0:00:25]}  Kf8 {[%clk 0:00:03]} 31. Qg7+ {[%clk 0:00:25]}  Ke8 {[%clk 0:00:03]} 32. Qg8+ {[%clk 0:00:25]}  Kd7 {[%clk 0:00:04]} 33. Qxf7+ {[%clk 0:00:25]}  Kc6 {[%clk 0:00:05]} 34. Qg6 {[%clk 0:00:20]}  Rf8 {[%clk 0:00:01]} 35. f7+ {[%clk 0:00:20]}  Kd7 {[%clk 0:00:01]} 36. h4 {[%clk 0:00:16]}  Bd5 {[%clk 0:00:01]} 37. h5 {[%clk 0:00:16]}  Rxf7 {[%clk 0:00:01]} 38. h6 {[%clk 0:00:16]}  Ree7 {[%clk 0:00:01]} 39. Kf2 {[%clk 0:00:15]}  Rh7 {[%clk 0:00:00]} 40. Re1 {[%clk 0:00:15]} 1-0


[Site "https://www.chess.com"]

[Event "Titled Tuesday Blitz August 15 Early 2023"]
[White "Davidson, Kevin"]
[Black "ChainedDowntohell"]
[WhiteFideId "2056810"]
[WhiteElo "2360"]
[BlackElo "2525"]
[Result "0-1"]
[Round "8"]
[TimeControl "180+1"]
[Date "2023.08.15"]
[WhiteClock "0:00:00"]
[BlackClock "0:00:10"]
[Board "102"]

1. e4 {[%clk 0:03:00]}  c5 {[%clk 0:02:59]} 2. Nf3 {[%clk 0:03:00]}  d6 {[%clk 0:02:59]} 3. d4 {[%clk 0:03:00]}  cxd4 {[%clk 0:02:59]} 4. Nxd4 {[%clk 0:03:01]}  Nf6 {[%clk 0:02:59]} 5. Nc3 {[%clk 0:03:02]}  Bd7 {[%clk 0:02:58]} 6. f3 {[%clk 0:02:56]}  Nc6 {[%clk 0:02:53]} 7. Be3 {[%clk 0:02:56]}  e5 {[%clk 0:02:19]} 8. Nb3 {[%clk 0:02:51]}  Be7 {[%clk 0:02:16]} 9. Qd2 {[%clk 0:02:45]}  a5 {[%clk 0:02:13]} 10. a4 {[%clk 0:02:34]}  O-O {[%clk 0:02:12]} 11. Bc4 {[%clk 0:02:31]}  Nb4 {[%clk 0:01:58]} 12. Nd5 {[%clk 0:01:45]}  Nfxd5 {[%clk 0:01:57]} 13. Bxd5 {[%clk 0:01:44]}  Nxd5 {[%clk 0:01:53]} 14. Qxd5 {[%clk 0:01:43]}  Bc6 {[%clk 0:01:51]} 15. Qd2 {[%clk 0:01:30]}  d5 {[%clk 0:01:47]} 16. exd5 {[%clk 0:01:30]}  Qxd5 {[%clk 0:01:46]} 17. O-O {[%clk 0:01:23]}  Qc4 {[%clk 0:01:39]} 18. Nxa5 {[%clk 0:01:12]}  Qe6 {[%clk 0:00:59]} 19. Nxc6 {[%clk 0:01:07]}  Qxc6 {[%clk 0:01:00]} 20. b3 {[%clk 0:01:00]}  f5 {[%clk 0:00:59]} 21. Rfd1 {[%clk 0:00:54]}  Rad8 {[%clk 0:00:57]} 22. Qe2 {[%clk 0:00:50]}  Qc3 {[%clk 0:00:39]} 23. Bf2 {[%clk 0:00:40]}  Rc8 {[%clk 0:00:29]} 24. Ra2 {[%clk 0:00:20]}  Rfd8 {[%clk 0:00:24]} 25. Be1 {[%clk 0:00:09]}  Bc5+ {[%clk 0:00:18]} 26. Kf1 {[%clk 0:00:07]}  Rxd1 {[%clk 0:00:17]} 27. Qxd1 {[%clk 0:00:08]}  Qe3 {[%clk 0:00:17]} 28. Qd5+ {[%clk 0:00:03]}  Kh8 {[%clk 0:00:16]} 29. Qd7 {[%clk 0:00:02]}  Rf8 {[%clk 0:00:10]} 30. c4 {[%clk 0:00:02]}  Qg1+ {[%clk 0:00:09]} 31. Ke2 {[%clk 0:00:00]}  Qxg2+ {[%clk 0:00:10]} 0-1


[Site "https://www.chess.com"]

[Event "Titled Tuesday Blitz August 15 Early 2023"]
[White "Nugumanov, Bakhtiyar"]
[Black "Kovalevsky, Stanislav"]
[WhiteFideId "13701797"]
[BlackFideId "13508598"]
[WhiteElo "2117"]
[BlackElo "2508"]
[Result "0-1"]
[Round "8"]
[TimeControl "180+1"]
[Date "2023.08.15"]
[WhiteClock "0:00:10"]
[BlackClock "0:00:08"]
[Board "105"]

1. e4 {[%clk 0:03:00]}  c6 {[%clk 0:02:59]} 2. d4 {[%clk 0:02:58]}  d5 {[%clk 0:03:00]} 3. Nd2 {[%clk 0:02:58]}  dxe4 {[%clk 0:02:59]} 4. Nxe4 {[%clk 0:02:58]}  Nf6 {[%clk 0:03:00]} 5. Nxf6+ {[%clk 0:02:56]}  exf6 {[%clk 0:03:01]} 6. c3 {[%clk 0:02:56]}  Bd6 {[%clk 0:03:01]} 7. Bd3 {[%clk 0:02:56]}  O-O {[%clk 0:03:01]} 8. Nf3 {[%clk 0:02:53]}  Re8+ {[%clk 0:02:55]} 9. Be3 {[%clk 0:02:52]}  Bf4 {[%clk 0:02:55]} 10. O-O {[%clk 0:02:24]}  Bxe3 {[%clk 0:02:52]} 11. fxe3 {[%clk 0:02:24]}  Rxe3 {[%clk 0:02:53]} 12. Qd2 {[%clk 0:02:24]}  Re8 {[%clk 0:02:41]} 13. Nh4 {[%clk 0:01:51]}  Na6 {[%clk 0:02:33]} 14. Rf3 {[%clk 0:01:21]}  Nc7 {[%clk 0:02:23]} 15. Rg3 {[%clk 0:01:17]}  Ne6 {[%clk 0:02:13]} 16. Nf5 {[%clk 0:01:16]}  Ng5 {[%clk 0:02:10]} 17. Nxg7 {[%clk 0:01:03]}  Kxg7 {[%clk 0:02:11]} 18. h4 {[%clk 0:01:03]}  h6 {[%clk 0:02:10]} 19. Rf1 {[%clk 0:00:58]}  Rh8 {[%clk 0:01:41]} 20. hxg5 {[%clk 0:00:26]}  hxg5 {[%clk 0:01:42]} 21. Bc4 {[%clk 0:00:26]}  Be6 {[%clk 0:01:33]} 22. Bxe6 {[%clk 0:00:21]}  fxe6 {[%clk 0:01:34]} 23. Qe3 {[%clk 0:00:20]}  Qe7 {[%clk 0:01:20]} 24. Re1 {[%clk 0:00:19]}  Rae8 {[%clk 0:01:12]} 25. c4 {[%clk 0:00:18]}  Rh6 {[%clk 0:01:09]} 26. Kf2 {[%clk 0:00:17]}  Rg6 {[%clk 0:01:00]} 27. Rh3 {[%clk 0:00:14]}  g4 {[%clk 0:00:36]} 28. Rh5 {[%clk 0:00:13]}  g3+ {[%clk 0:00:30]} 29. Ke2 {[%clk 0:00:12]}  Qb4 {[%clk 0:00:29]} 30. Reh1 {[%clk 0:00:07]}  Qxc4+ {[%clk 0:00:20]} 31. Kd2 {[%clk 0:00:05]}  Kf8 {[%clk 0:00:12]} 32. Rh8+ {[%clk 0:00:05]}  Ke7 {[%clk 0:00:13]} 33. R1h7+ {[%clk 0:00:04]}  Kd8 {[%clk 0:00:12]} 34. Rxe8+ {[%clk 0:00:05]}  Kxe8 {[%clk 0:00:12]} 35. Rxb7 {[%clk 0:00:06]}  Rg4 {[%clk 0:00:10]} 36. Rxa7 {[%clk 0:00:05]}  Rxd4+ {[%clk 0:00:10]} 37. Ke1 {[%clk 0:00:04]}  Re4 {[%clk 0:00:10]} 38. Ra8+ {[%clk 0:00:04]}  Kf7 {[%clk 0:00:10]} 39. Ra7+ {[%clk 0:00:04]}  Kg6 {[%clk 0:00:11]} 40. Ra3 {[%clk 0:00:02]}  Rxe3+ {[%clk 0:00:08]} 41. Rxe3 {[%clk 0:00:03]}  Qc1+ {[%clk 0:00:08]} 42. Ke2 {[%clk 0:00:04]}  Qxb2+ {[%clk 0:00:08]} 43. Kf3 {[%clk 0:00:05]}  Qf2+ {[%clk 0:00:09]} 44. Ke4 {[%clk 0:00:05]}  f5+ {[%clk 0:00:09]} 45. Kd3 {[%clk 0:00:05]}  Qxg2 {[%clk 0:00:09]} 46. Rxe6+ {[%clk 0:00:06]}  Kg5 {[%clk 0:00:08]} 47. Re2 {[%clk 0:00:07]}  Qxe2+ {[%clk 0:00:08]} 48. Kxe2 {[%clk 0:00:08]}  Kg4 {[%clk 0:00:07]} 49. Kf1 {[%clk 0:00:08]}  f4 {[%clk 0:00:06]} 50. a4 {[%clk 0:00:08]}  Kh3 {[%clk 0:00:06]} 51. a5 {[%clk 0:00:09]}  f3 {[%clk 0:00:06]} 52. a6 {[%clk 0:00:09]}  Kh2 {[%clk 0:00:07]} 53. a7 {[%clk 0:00:08]}  g2+ {[%clk 0:00:07]} 54. Kf2 {[%clk 0:00:07]}  g1=Q+ {[%clk 0:00:07]} 55. Kxf3 {[%clk 0:00:08]}  Qxa7 {[%clk 0:00:08]} 56. Kg4 {[%clk 0:00:08]}  Qg7+ {[%clk 0:00:08]} 57. Kh4 {[%clk 0:00:09]}  Kg2 {[%clk 0:00:07]} 58. Kh5 {[%clk 0:00:10]}  Kf3 {[%clk 0:00:08]} 59. Kh4 {[%clk 0:00:10]}  Qg4# {[%clk 0:00:08]} 0-1


[Site "https://www.chess.com"]

[Event "Titled Tuesday Blitz August 15 Early 2023"]
[White "Samarth J Rao"]
[Black "Berezin, Viktor"]
[WhiteFideId "46652370"]
[BlackFideId "14107872"]
[WhiteElo "2028"]
[BlackElo "2507"]
[Result "0-1"]
[Round "8"]
[TimeControl "180+1"]
[Date "2023.08.15"]
[WhiteClock "0:00:01"]
[BlackClock "0:00:09"]
[Board "106"]

1. e4 {[%clk 0:02:40]}  c6 {[%clk 0:02:57]} 2. d4 {[%clk 0:02:36]}  d5 {[%clk 0:02:57]} 3. Nc3 {[%clk 0:02:36]}  dxe4 {[%clk 0:02:57]} 4. Nxe4 {[%clk 0:02:37]}  Nf6 {[%clk 0:02:58]} 5. Nxf6+ {[%clk 0:02:37]}  exf6 {[%clk 0:02:59]} 6. Nf3 {[%clk 0:02:35]}  Bd6 {[%clk 0:02:58]} 7. h3 {[%clk 0:02:35]}  O-O {[%clk 0:02:58]} 8. Be2 {[%clk 0:02:35]}  Re8 {[%clk 0:02:58]} 9. O-O {[%clk 0:02:35]}  Nd7 {[%clk 0:02:59]} 10. c4 {[%clk 0:02:32]}  Nf8 {[%clk 0:02:58]} 11. d5 {[%clk 0:02:32]}  c5 {[%clk 0:02:57]} 12. Re1 {[%clk 0:02:27]}  Ng6 {[%clk 0:02:56]} 13. Bf1 {[%clk 0:02:26]}  Bf5 {[%clk 0:02:55]} 14. Bd2 {[%clk 0:02:25]}  Qd7 {[%clk 0:02:52]} 15. Qb3 {[%clk 0:02:24]}  b6 {[%clk 0:02:49]} 16. Rxe8+ {[%clk 0:02:24]}  Rxe8 {[%clk 0:02:50]} 17. Re1 {[%clk 0:02:24]}  Be4 {[%clk 0:02:43]} 18. a3 {[%clk 0:02:08]}  h6 {[%clk 0:02:35]} 19. Qc3 {[%clk 0:01:57]}  f5 {[%clk 0:02:31]} 20. Nh2 {[%clk 0:01:44]}  Bc7 {[%clk 0:02:14]} 21. Qe3 {[%clk 0:01:38]}  Qd6 {[%clk 0:02:02]} 22. g3 {[%clk 0:01:19]}  f4 {[%clk 0:02:01]} 23. gxf4 {[%clk 0:01:18]}  Nxf4 {[%clk 0:02:01]} 24. Qxf4 {[%clk 0:01:17]}  Re5 {[%clk 0:01:31]} 25. Ng4 {[%clk 0:01:13]}  Qg6 {[%clk 0:01:20]} 26. Qg3 {[%clk 0:00:44]}  Re7 {[%clk 0:01:05]} 27. Qh4 {[%clk 0:00:31]}  f6 {[%clk 0:00:53]} 28. f3 {[%clk 0:00:31]}  Re8 {[%clk 0:00:43]} 29. fxe4 {[%clk 0:00:26]}  h5 {[%clk 0:00:39]} 30. e5 {[%clk 0:00:22]}  Bxe5 {[%clk 0:00:35]} 31. Bg2 {[%clk 0:00:13]}  Bd4+ {[%clk 0:00:32]} 32. Kh1 {[%clk 0:00:11]}  Rxe1+ {[%clk 0:00:19]} 33. Qxe1 {[%clk 0:00:12]}  hxg4 {[%clk 0:00:20]} 34. Qe6+ {[%clk 0:00:12]}  Kh8 {[%clk 0:00:18]} 35. Qc8+ {[%clk 0:00:09]}  Kh7 {[%clk 0:00:17]} 36. Qxg4 {[%clk 0:00:09]}  Qb1+ {[%clk 0:00:17]} 37. Kh2 {[%clk 0:00:08]}  Qg1+ {[%clk 0:00:14]} 38. Kg3 {[%clk 0:00:08]}  Qf2+ {[%clk 0:00:14]} 39. Kh2 {[%clk 0:00:08]}  Qg1+ {[%clk 0:00:12]} 40. Kg3 {[%clk 0:00:08]}  Qf2+ {[%clk 0:00:13]} 41. Kh2 {[%clk 0:00:09]}  Qxd2 {[%clk 0:00:14]} 42. Qf5+ {[%clk 0:00:07]}  Kh6 {[%clk 0:00:11]} 43. Kg3 {[%clk 0:00:03]}  Be5+ {[%clk 0:00:11]} 44. Kf3 {[%clk 0:00:03]}  Qd1+ {[%clk 0:00:09]} 45. Kf2 {[%clk 0:00:02]}  Bd4+ {[%clk 0:00:09]} 46. Kg3 {[%clk 0:00:02]}  Qe1+ {[%clk 0:00:09]} 47. Kf3 {[%clk 0:00:01]}  Qf2+ {[%clk 0:00:09]} 48. Ke4 {[%clk 0:00:01]}  Qe3# {[%clk 0:00:09]} 0-1


[Site "https://www.chess.com"]

[Event "Titled Tuesday Blitz August 15 Early 2023"]
[White "Arutla, Aditya"]
[Black "Nosacheva, Mariya"]
[WhiteFideId "30961998"]
[BlackFideId "34111422"]
[WhiteElo "2510"]
[BlackElo "2373"]
[Result "0-1"]
[Round "8"]
[TimeControl "180+1"]
[Date "2023.08.15"]
[WhiteClock "0:00:00"]
[BlackClock "0:00:14"]
[Board "112"]

1. d4 {[%clk 0:03:00]}  Nf6 {[%clk 0:02:58]} 2. Bf4 {[%clk 0:03:01]}  g6 {[%clk 0:02:59]} 3. Nf3 {[%clk 0:02:53]}  Bg7 {[%clk 0:02:59]} 4. e3 {[%clk 0:02:54]}  O-O {[%clk 0:02:59]} 5. Be2 {[%clk 0:02:53]}  d6 {[%clk 0:02:59]} 6. h3 {[%clk 0:02:53]}  c5 {[%clk 0:02:57]} 7. c3 {[%clk 0:02:51]}  Nc6 {[%clk 0:02:53]} 8. O-O {[%clk 0:02:51]}  Be6 {[%clk 0:02:50]} 9. Nbd2 {[%clk 0:02:49]}  Qb6 {[%clk 0:02:48]} 10. Ng5 {[%clk 0:02:43]}  Bf5 {[%clk 0:02:13]} 11. Nc4 {[%clk 0:02:41]}  Qd8 {[%clk 0:02:09]} 12. d5 {[%clk 0:02:37]}  h6 {[%clk 0:01:59]} 13. dxc6 {[%clk 0:02:20]}  hxg5 {[%clk 0:01:58]} 14. cxb7 {[%clk 0:02:20]}  Rb8 {[%clk 0:01:55]} 15. Bxg5 {[%clk 0:02:18]}  Rxb7 {[%clk 0:01:55]} 16. Bd3 {[%clk 0:01:57]}  Bxd3 {[%clk 0:01:51]} 17. Qxd3 {[%clk 0:01:57]}  d5 {[%clk 0:01:51]} 18. Nd2 {[%clk 0:01:54]}  Rxb2 {[%clk 0:01:49]} 19. Rfb1 {[%clk 0:01:54]}  Qb6 {[%clk 0:01:45]} 20. Bxf6 {[%clk 0:01:44]}  Bxf6 {[%clk 0:01:45]} 21. Qxd5 {[%clk 0:01:43]}  Bxc3 {[%clk 0:01:34]} 22. Nb3 {[%clk 0:01:19]}  Rd8 {[%clk 0:01:11]} 23. Qc4 {[%clk 0:01:12]}  Qf6 {[%clk 0:01:01]} 24. Rxb2 {[%clk 0:01:10]}  Bxb2 {[%clk 0:01:01]} 25. Rb1 {[%clk 0:01:07]}  Be5 {[%clk 0:01:00]} 26. Qxc5 {[%clk 0:01:00]}  a6 {[%clk 0:01:00]} 27. Qc2 {[%clk 0:00:59]}  Qd6 {[%clk 0:00:57]} 28. Qe2 {[%clk 0:00:51]}  Kg7 {[%clk 0:00:43]} 29. Na5 {[%clk 0:00:48]}  Rc8 {[%clk 0:00:36]} 30. Nc4 {[%clk 0:00:38]}  Bh2+ {[%clk 0:00:30]} 31. Kh1 {[%clk 0:00:34]}  Qc7 {[%clk 0:00:30]} 32. Qb2+ {[%clk 0:00:23]}  Kg8 {[%clk 0:00:25]} 33. Nd2 {[%clk 0:00:14]}  Be5 {[%clk 0:00:21]} 34. Qb7 {[%clk 0:00:12]}  Qc1+ {[%clk 0:00:21]} 35. Nf1 {[%clk 0:00:11]}  Qc2 {[%clk 0:00:18]} 36. Qb3 {[%clk 0:00:07]}  Qxf2 {[%clk 0:00:17]} 37. Qb7 {[%clk 0:00:05]}  Rb8 {[%clk 0:00:17]} 38. Qe4 {[%clk 0:00:03]}  Rxb1 {[%clk 0:00:15]} 39. Qxb1 {[%clk 0:00:04]}  Bd6 {[%clk 0:00:15]} 40. Qb7 {[%clk 0:00:00]}  Qxa2 {[%clk 0:00:14]} 0-1


[Site "https://www.chess.com"]

[Event "Titled Tuesday Blitz August 15 Early 2023"]
[White "Camilla_Lee"]
[Black "FlemingA"]
[WhiteElo "2509"]
[BlackElo "2371"]
[Result "1-0"]
[Round "8"]
[TimeControl "180+1"]
[Date "2023.08.15"]
[WhiteClock "0:00:03"]
[BlackClock "0:00:03"]
[Board "113"]

1. e4 {[%clk 0:03:00]}  e6 {[%clk 0:02:58]} 2. d4 {[%clk 0:03:00]}  d5 {[%clk 0:02:54]} 3. e5 {[%clk 0:03:01]}  c5 {[%clk 0:02:51]} 4. c3 {[%clk 0:03:01]}  Nc6 {[%clk 0:02:50]} 5. Nf3 {[%clk 0:03:01]}  Bd7 {[%clk 0:02:51]} 6. a3 {[%clk 0:03:01]}  c4 {[%clk 0:02:48]} 7. Nbd2 {[%clk 0:02:57]}  Nh6 {[%clk 0:02:38]} 8. g3 {[%clk 0:02:55]}  Nf5 {[%clk 0:02:36]} 9. h4 {[%clk 0:02:55]}  Be7 {[%clk 0:02:32]} 10. Bh3 {[%clk 0:02:55]}  g6 {[%clk 0:02:33]} 11. Nf1 {[%clk 0:02:50]}  Qc7 {[%clk 0:02:32]} 12. N1h2 {[%clk 0:02:39]}  O-O-O {[%clk 0:02:31]} 13. Qe2 {[%clk 0:02:31]}  Rhf8 {[%clk 0:02:23]} 14. h5 {[%clk 0:02:30]}  f6 {[%clk 0:02:22]} 15. exf6 {[%clk 0:02:23]}  Rxf6 {[%clk 0:02:11]} 16. Ng4 {[%clk 0:02:23]}  Rff8 {[%clk 0:02:08]} 17. Bf4 {[%clk 0:02:22]}  Bd6 {[%clk 0:02:07]} 18. Bxd6 {[%clk 0:02:19]}  Qxd6 {[%clk 0:02:07]} 19. Nge5 {[%clk 0:02:12]}  gxh5 {[%clk 0:01:50]} 20. O-O-O {[%clk 0:02:11]}  Be8 {[%clk 0:01:41]} 21. Rde1 {[%clk 0:01:49]}  Na5 {[%clk 0:01:18]} 22. Nd2 {[%clk 0:01:30]}  b5 {[%clk 0:01:05]} 23. Bg2 {[%clk 0:01:06]}  Qa6 {[%clk 0:00:57]} 24. Nef3 {[%clk 0:01:01]}  Bd7 {[%clk 0:00:53]} 25. Rxh5 {[%clk 0:00:59]}  Rf7 {[%clk 0:00:46]} 26. Ne5 {[%clk 0:00:48]}  Re7 {[%clk 0:00:44]} 27. Reh1 {[%clk 0:00:47]}  h6 {[%clk 0:00:27]} 28. g4 {[%clk 0:00:45]}  Nd6 {[%clk 0:00:27]} 29. Rxh6 {[%clk 0:00:44]}  b4 {[%clk 0:00:24]} 30. cxb4 {[%clk 0:00:44]}  Nc6 {[%clk 0:00:23]} 31. Nxc6 {[%clk 0:00:39]}  Qxc6 {[%clk 0:00:23]} 32. Kb1 {[%clk 0:00:32]}  Nb5 {[%clk 0:00:18]} 33. Qe3 {[%clk 0:00:14]}  Kb8 {[%clk 0:00:10]} 34. Rc1 {[%clk 0:00:14]}  Rf8 {[%clk 0:00:09]} 35. Nxc4 {[%clk 0:00:13]}  Ref7 {[%clk 0:00:05]} 36. Ne5 {[%clk 0:00:09]}  Qb6 {[%clk 0:00:06]} 37. Nxf7 {[%clk 0:00:07]}  Rxf7 {[%clk 0:00:06]} 38. Qe5+ {[%clk 0:00:06]}  Kb7 {[%clk 0:00:06]} 39. Rh8 {[%clk 0:00:06]}  Rxf2 {[%clk 0:00:04]} 40. Rb8+ {[%clk 0:00:05]}  Ka6 {[%clk 0:00:05]} 41. Rxb6+ {[%clk 0:00:06]}  axb6 {[%clk 0:00:05]} 42. Qb8 {[%clk 0:00:05]}  Na7 {[%clk 0:00:05]} 43. Rc7 {[%clk 0:00:04]}  Kb5 {[%clk 0:00:02]} 44. Qxa7 {[%clk 0:00:03]}  Bc6 {[%clk 0:00:02]} 45. Rxc6 {[%clk 0:00:03]}  Kxc6 {[%clk 0:00:02]} 46. Qa8+ {[%clk 0:00:03]}  Kb5 {[%clk 0:00:02]} 47. Qe8+ {[%clk 0:00:03]}  Kc4 {[%clk 0:00:02]} 48. Qc6+ {[%clk 0:00:03]}  Kxd4 {[%clk 0:00:03]} 49. Qc3# {[%clk 0:00:03]} 1-0


[Site "https://www.chess.com"]

[Event "Titled Tuesday Blitz August 15 Early 2023"]
[White "Topalov, Aleksandar"]
[Black "Reprintsev, Alexander"]
[WhiteFideId "925659"]
[BlackFideId "14100541"]
[WhiteElo "2367"]
[BlackElo "2485"]
[Result "0-1"]
[Round "8"]
[TimeControl "180+1"]
[Date "2023.08.15"]
[WhiteClock "0:00:00"]
[BlackClock "0:00:04"]
[Board "114"]

1. b3 {[%clk 0:03:00]}  e5 {[%clk 0:02:47]} 2. Bb2 {[%clk 0:02:58]}  Nc6 {[%clk 0:02:37]} 3. c4 {[%clk 0:02:57]}  Bc5 {[%clk 0:02:32]} 4. e3 {[%clk 0:02:56]}  Qe7 {[%clk 0:02:31]} 5. a3 {[%clk 0:02:55]}  a5 {[%clk 0:02:29]} 6. Nc3 {[%clk 0:02:55]}  Nf6 {[%clk 0:02:21]} 7. Qc2 {[%clk 0:02:55]}  O-O {[%clk 0:02:19]} 8. Nd5 {[%clk 0:02:54]}  Qd6 {[%clk 0:02:07]} 9. Nxf6+ {[%clk 0:02:51]}  Qxf6 {[%clk 0:02:07]} 10. Nf3 {[%clk 0:02:51]}  Re8 {[%clk 0:02:03]} 11. Bd3 {[%clk 0:02:45]}  h6 {[%clk 0:01:58]} 12. Be4 {[%clk 0:02:40]}  d6 {[%clk 0:01:55]} 13. h3 {[%clk 0:02:21]}  Ne7 {[%clk 0:01:51]} 14. O-O-O {[%clk 0:02:06]}  Bf5 {[%clk 0:01:40]} 15. g4 {[%clk 0:01:59]}  Bxe4 {[%clk 0:01:35]} 16. Qxe4 {[%clk 0:01:59]}  Qg6 {[%clk 0:01:28]} 17. Qxg6 {[%clk 0:01:37]}  fxg6 {[%clk 0:01:22]} 18. d4 {[%clk 0:01:37]}  exd4 {[%clk 0:01:04]} 19. Nxd4 {[%clk 0:01:37]}  Nc6 {[%clk 0:01:01]} 20. Nb5 {[%clk 0:01:32]}  Re7 {[%clk 0:00:40]} 21. Rd2 {[%clk 0:01:17]}  Rf8 {[%clk 0:00:37]} 22. Kd1 {[%clk 0:01:16]}  g5 {[%clk 0:00:36]} 23. h4 {[%clk 0:01:08]}  gxh4 {[%clk 0:00:35]} 24. Rxh4 {[%clk 0:01:08]}  Ref7 {[%clk 0:00:35]} 25. Ke1 {[%clk 0:01:01]}  Bb6 {[%clk 0:00:35]} 26. Rh5 {[%clk 0:00:54]}  Ne7 {[%clk 0:00:33]} 27. g5 {[%clk 0:00:49]}  Rf5 {[%clk 0:00:27]} 28. c5 {[%clk 0:00:47]}  Bxc5 {[%clk 0:00:24]} 29. Nxc7 {[%clk 0:00:46]}  Rxg5 {[%clk 0:00:18]} 30. Rxg5 {[%clk 0:00:44]}  hxg5 {[%clk 0:00:19]} 31. Ne6 {[%clk 0:00:41]}  Rc8 {[%clk 0:00:18]} 32. Nxg5 {[%clk 0:00:30]}  Nc6 {[%clk 0:00:16]} 33. Ke2 {[%clk 0:00:26]}  Re8 {[%clk 0:00:16]} 34. a4 {[%clk 0:00:21]}  b6 {[%clk 0:00:15]} 35. Kf3 {[%clk 0:00:20]}  Nb4 {[%clk 0:00:14]} 36. Ne4 {[%clk 0:00:15]}  d5 {[%clk 0:00:14]} 37. Nxc5 {[%clk 0:00:14]}  bxc5 {[%clk 0:00:14]} 38. Ba3 {[%clk 0:00:12]}  Rd8 {[%clk 0:00:15]} 39. Bxb4 {[%clk 0:00:10]}  axb4 {[%clk 0:00:14]} 40. Kf4 {[%clk 0:00:10]}  Kf8 {[%clk 0:00:12]} 41. Ke5 {[%clk 0:00:11]}  Re8+ {[%clk 0:00:12]} 42. Kd6 {[%clk 0:00:10]}  c4 {[%clk 0:00:12]} 43. Kc5 {[%clk 0:00:07]}  c3 {[%clk 0:00:12]} 44. Rc2 {[%clk 0:00:07]}  Rb8 {[%clk 0:00:11]} 45. Kxd5 {[%clk 0:00:07]}  Ke7 {[%clk 0:00:11]} 46. Kc4 {[%clk 0:00:07]}  Kd6 {[%clk 0:00:11]} 47. f3 {[%clk 0:00:07]}  Ke5 {[%clk 0:00:11]} 48. Rc1 {[%clk 0:00:07]}  g5 {[%clk 0:00:11]} 49. Rg1 {[%clk 0:00:07]}  Kf5 {[%clk 0:00:11]} 50. Rd1 {[%clk 0:00:07]}  g4 {[%clk 0:00:08]} 51. Rd5+ {[%clk 0:00:07]}  Ke6 {[%clk 0:00:08]} 52. Rc5 {[%clk 0:00:05]}  gxf3 {[%clk 0:00:06]} 53. Kd3 {[%clk 0:00:05]}  Rd8+ {[%clk 0:00:05]} 54. Ke4 {[%clk 0:00:03]}  f2 {[%clk 0:00:06]} 55. Re5+ {[%clk 0:00:03]}  Kd6 {[%clk 0:00:04]} 56. Rf5 {[%clk 0:00:04]}  c2 {[%clk 0:00:04]} 57. Rf6+ {[%clk 0:00:02]}  Ke7 {[%clk 0:00:04]} 58. Rxf2 {[%clk 0:00:00]}  c1=Q {[%clk 0:00:04]} 0-1


[Site "https://www.chess.com"]